[Event "Rapid della Domenica"]
[Site "Chess.com"]
[Date "2020.05.10"]
[Round "6"]
[White "Simo2005"]
[Black "Carbon"]
[Result "0-1"]
[WhiteElo "1663"]
[BlackElo "1761"]
[TimeControl "720+3"]
[EndTime "8:27:25 PDT"]
[Termination "Carbon ha vinto per abbandono"]

1. e4 {[%clk 0:12:02.7]} 1... e6 {[%clk 0:11:59.4]} 2. d4 {[%clk 0:11:40.5]}
2... d5 {[%clk 0:12:00.3]} 3. e5 {[%clk 0:11:33.3]} 3... c5 {[%clk 0:12:00.5]}
4. c3 {[%clk 0:11:32.1]} 4... Nc6 {[%clk 0:12:00.4]} 5. Nf3 {[%clk 0:11:22.5]}
5... Bd7 {[%clk 0:11:59.8]} 6. Be2 {[%clk 0:11:16.7]} 6... Nge7 {[%clk 0:11:56]}
7. Na3 {[%clk 0:11:11]} 7... Ng6 {[%clk 0:11:44.6]} 8. Nc2 {[%clk 0:10:58.4]}
8... cxd4 {[%clk 0:11:30.2]} 9. cxd4 {[%clk 0:10:53]} 9... Rc8 {[%clk
0:11:23.6]} 10. O-O {[%clk 0:10:45.4]} 10... Be7 {[%clk 0:11:12]} 11. Be3 {[%clk
0:10:32.6]} 11... O-O {[%clk 0:11:12.6]} 12. Rc1 {[%clk 0:10:28.3]} 12... f6
{[%clk 0:11:09.5]} 13. Qd3 {[%clk 0:09:43.8]} 13... fxe5 {[%clk 0:10:57.2]} 14.
Nxe5 {[%clk 0:09:03.8]} 14... Ngxe5 {[%clk 0:10:46.9]} 15. dxe5 {[%clk 0:08:54]}
15... Nxe5 {[%clk 0:10:08.1]} 16. Qd2 {[%clk 0:08:39.5]} 16... Nc6 {[%clk
0:10:00.7]} 17. Nd4 {[%clk 0:08:23.7]} 17... a6 {[%clk 0:09:40.1]} 18. f4 {[%clk
0:06:44.1]} 18... Bf6 {[%clk 0:09:10.7]} 19. Rf3 {[%clk 0:05:12.7]} 19... Nxd4
{[%clk 0:08:28.9]} 20. Bxd4 {[%clk 0:05:06.2]} 20... Rxc1+ {[%clk 0:08:16.3]}
21. Qxc1 {[%clk 0:05:01.8]} 21... Bxd4+ {[%clk 0:08:15.7]} 22. Kh1 {[%clk
0:04:57]} 22... Qf6 {[%clk 0:07:13.9]} 23. Bd3 {[%clk 0:04:34.9]} 23... Bxb2
{[%clk 0:07:02.4]} 24. Qc7 {[%clk 0:04:27.1]} 24... Bc6 {[%clk 0:06:25.4]} 25.
Rh3 {[%clk 0:04:03.4]} 25... h6 {[%clk 0:06:18.6]} 26. Rg3 {[%clk 0:03:37.4]}
26... Qxf4 {[%clk 0:06:02.4]} 0-1

[Event "Rapid della Domenica"]
[Site "Chess.com"]
[Date "2020.05.10"]
[Round "6"]
[White "GB86_CHESS"]
[Black "Ollarov"]
[Result "0-1"]
[WhiteElo "1684"]
[BlackElo "2002"]
[TimeControl "720+3"]
[EndTime "8:29:31 PDT"]
[Termination "Ollarov ha vinto per abbandono"]

1. c4 {[%clk 0:11:52.1]} 1... Nf6 {[%clk 0:10:38.6]} 2. g3 {[%clk 0:11:43.8]}
2... g6 {[%clk 0:10:32.4]} 3. Nc3 {[%clk 0:11:42.2]} 3... Bg7 {[%clk 0:10:34.5]}
4. Bg2 {[%clk 0:11:44.2]} 4... O-O {[%clk 0:10:36.9]} 5. e4 {[%clk 0:11:44.3]}
5... d6 {[%clk 0:10:39]} 6. Nge2 {[%clk 0:11:46.1]} 6... e5 {[%clk 0:10:39.7]}
7. d3 {[%clk 0:11:48.4]} 7... Nc6 {[%clk 0:10:38.7]} 8. O-O {[%clk 0:11:49.9]}
8... Rb8 {[%clk 0:10:41]} 9. h3 {[%clk 0:11:36.8]} 9... a6 {[%clk 0:10:42.4]}
10. Be3 {[%clk 0:11:38.2]} 10... b5 {[%clk 0:10:43.9]} 11. Nd5 {[%clk
0:11:27.2]} 11... Nxd5 {[%clk 0:10:41.1]} 12. cxd5 {[%clk 0:11:25.9]} 12... Ne7
{[%clk 0:10:42.9]} 13. Qd2 {[%clk 0:11:26.8]} 13... c6 {[%clk 0:10:41.3]} 14.
dxc6 {[%clk 0:11:25.9]} 14... Nxc6 {[%clk 0:10:42.4]} 15. Bh6 {[%clk 0:11:28.2]}
15... Bxh6 {[%clk 0:10:40.8]} 16. Qxh6 {[%clk 0:11:29.1]} 16... Qb6 {[%clk
0:10:42.6]} 17. Kh2 {[%clk 0:11:26.7]} 17... Nd4 {[%clk 0:10:44.1]} 18. Nc3
{[%clk 0:11:07.8]} 18... Be6 {[%clk 0:10:40.2]} 19. f4 {[%clk 0:11:05.3]} 19...
f5 {[%clk 0:10:23.9]} 20. fxe5 {[%clk 0:11:02.4]} 20... dxe5 {[%clk 0:10:23.6]}
21. exf5 {[%clk 0:10:59.8]} 21... Nxf5 {[%clk 0:10:25.2]} 22. Qg5 {[%clk
0:10:40.4]} 22... Ne3 {[%clk 0:10:20.8]} 23. Rxf8+ {[%clk 0:09:41.5]} 23... Rxf8
{[%clk 0:10:21.9]} 24. Rg1 {[%clk 0:09:13.8]} 24... Qd4 {[%clk 0:09:07.8]} 25.
Qe7 {[%clk 0:08:38.9]} 25... Bf5 {[%clk 0:09:02.8]} 26. Ne4 {[%clk 0:07:41.1]}
26... Bxe4 {[%clk 0:08:54.2]} 27. dxe4 {[%clk 0:07:39.1]} 27... Qxb2 {[%clk
0:08:48.8]} 28. Qe6+ {[%clk 0:07:37.6]} 28... Kg7 {[%clk 0:08:46.9]} 29. Qxa6
{[%clk 0:07:06.8]} 29... Nf1+ {[%clk 0:08:31.4]} 30. Kh1 {[%clk 0:06:29.9]}
30... Nxg3+ {[%clk 0:08:32.4]} 31. Kh2 {[%clk 0:06:31.6]} 31... Nh5 {[%clk
0:08:33.7]} 32. Qb7+ {[%clk 0:06:17.3]} 32... Kh6 {[%clk 0:08:31.5]} 33. Qe7
{[%clk 0:06:04]} 33... Rf2 {[%clk 0:08:32.7]} 34. h4 {[%clk 0:06:00.2]} 34...
Nf6 {[%clk 0:08:24.3]} 35. Qf8+ {[%clk 0:05:46.8]} 35... Kh5 {[%clk 0:08:22.9]}
36. Qg7 {[%clk 0:05:16]} 36... Ng4+ {[%clk 0:08:09.9]} 37. Kh1 {[%clk
0:05:14.5]} 37... h6 {[%clk 0:08:11.8]} 38. Qd7 {[%clk 0:05:03.2]} 38... Rxg2
{[%clk 0:07:57.9]} 39. Rxg2 {[%clk 0:04:47]} 39... Qb1+ {[%clk 0:07:57.8]} 40.
Rg1 {[%clk 0:04:37.4]} 40... Qxe4+ {[%clk 0:07:58]} 41. Rg2 {[%clk 0:04:38.9]}
41... Qe1+ {[%clk 0:07:59.3]} 42. Rg1 {[%clk 0:04:38.5]} 42... Qxh4+ {[%clk
0:07:56.4]} 43. Kg2 {[%clk 0:04:39.5]} 43... Qh2+ {[%clk 0:07:56.4]} 44. Kf3
{[%clk 0:04:38.6]} 44... Qf2+ {[%clk 0:07:54.7]} 45. Ke4 {[%clk 0:04:34.6]}
45... Qxg1 {[%clk 0:07:56]} 46. Qxb5 {[%clk 0:04:31.2]} 46... Qd4+ {[%clk
0:07:53.4]} 47. Kf3 {[%clk 0:04:31.3]} 47... Qf4+ {[%clk 0:07:55.2]} 48. Ke2
{[%clk 0:04:31.5]} 48... Qe3+ {[%clk 0:07:55.9]} 49. Kd1 {[%clk 0:04:25.4]}
49... Qd4+ {[%clk 0:07:40.1]} 50. Kc1 {[%clk 0:04:24]} 50... Kg5 {[%clk
0:07:24.8]} 51. a4 {[%clk 0:04:22.9]} 51... h5 {[%clk 0:07:23.2]} 52. a5 {[%clk
0:04:19.5]} 52... h4 {[%clk 0:07:21.6]} 53. Qe8 {[%clk 0:03:20.8]} 53... h3
{[%clk 0:07:18.5]} 54. Qe7+ {[%clk 0:03:20.4]} 54... Nf6 {[%clk 0:07:16.6]} 55.
Qa3 {[%clk 0:03:09.6]} 55... h2 {[%clk 0:07:09.4]} 56. Qg3+ {[%clk 0:03:07.3]}
56... Ng4 {[%clk 0:07:07.8]} 57. Qe1 {[%clk 0:02:22.4]} 57... Qe3+ {[%clk
0:06:54]} 0-1

[Event "Rapid della Domenica"]
[Site "Chess.com"]
[Date "2020.05.10"]
[Round "6"]
[White "ferrariand"]
[Black "fisherpez"]
[Result "1/2-1/2"]
[WhiteElo "1518"]
[BlackElo "1505"]
[TimeControl "720+3"]
[EndTime "8:29:34 PDT"]
[Termination "Partita patta per ripetizione di mosse"]

1. e4 {[%clk 0:12:02.9]} 1... e6 {[%clk 0:12:01.9]} 2. d4 {[%clk 0:11:54.7]}
2... b6 {[%clk 0:12:03.8]} 3. Nc3 {[%clk 0:11:30.2]} 3... Bb4 {[%clk 0:12:04.1]}
4. Bd2 {[%clk 0:11:29]} 4... Bb7 {[%clk 0:11:56.7]} 5. Bd3 {[%clk 0:11:24.8]}
5... Nf6 {[%clk 0:11:57.5]} 6. Qe2 {[%clk 0:11:02.7]} 6... Nc6 {[%clk
0:11:55.2]} 7. Nf3 {[%clk 0:11:02.2]} 7... Be7 {[%clk 0:11:45.7]} 8. O-O-O
{[%clk 0:10:51.6]} 8... Nb4 {[%clk 0:11:43.9]} 9. Bc4 {[%clk 0:10:40.7]} 9... a6
{[%clk 0:11:31.2]} 10. a3 {[%clk 0:10:41.6]} 10... Nc6 {[%clk 0:11:32.7]} 11.
Kb1 {[%clk 0:10:37.5]} 11... b5 {[%clk 0:11:29.6]} 12. Ba2 {[%clk 0:10:36.3]}
12... Qb8 {[%clk 0:11:18.2]} 13. e5 {[%clk 0:10:33.2]} 13... Ng8 {[%clk
0:11:15]} 14. Be3 {[%clk 0:10:15.3]} 14... b4 {[%clk 0:11:15.4]} 15. axb4 {[%clk
0:10:12.2]} 15... Nxb4 {[%clk 0:11:16.8]} 16. Bb3 {[%clk 0:10:06.1]} 16... Bd5
{[%clk 0:11:07.1]} 17. Nxd5 {[%clk 0:09:40.2]} 17... Nxd5 {[%clk 0:11:06.1]} 18.
Qc4 {[%clk 0:09:26.7]} 18... Bb4 {[%clk 0:10:24.7]} 19. Bd2 {[%clk 0:09:19.9]}
19... a5 {[%clk 0:10:13.9]} 20. Bxb4 {[%clk 0:08:52]} 20... Nxb4 {[%clk
0:10:13.1]} 21. c3 {[%clk 0:08:45.5]} 21... Nd5 {[%clk 0:10:09.7]} 22. Nd2
{[%clk 0:08:44]} 22... Nge7 {[%clk 0:10:04.7]} 23. Kc2 {[%clk 0:08:27.2]} 23...
Nb6 {[%clk 0:09:58.4]} 24. Qb5 {[%clk 0:07:43.4]} 24... O-O {[%clk 0:09:13.7]}
25. Ra1 {[%clk 0:07:43.1]} 25... c6 {[%clk 0:09:07.7]} 26. Qd3 {[%clk
0:07:15.2]} 26... a4 {[%clk 0:09:02.2]} 27. Ba2 {[%clk 0:07:05.3]} 27... Nbd5
{[%clk 0:08:52.8]} 28. Bxd5 {[%clk 0:06:53.5]} 28... Nxd5 {[%clk 0:08:31.1]} 29.
Nc4 {[%clk 0:06:40.7]} 29... Qa7 {[%clk 0:06:48.8]} 30. Ra3 {[%clk 0:06:38.6]}
30... Rfb8 {[%clk 0:06:47.5]} 31. Rha1 {[%clk 0:05:41.5]} 31... Nb6 {[%clk
0:06:47.1]} 32. Nxb6 {[%clk 0:05:40.6]} 32... Qxb6 {[%clk 0:06:48.7]} 33. Rb1
{[%clk 0:05:36]} 33... Ra7 {[%clk 0:06:40.9]} 34. Qc4 {[%clk 0:05:29.2]} 34...
Rba8 {[%clk 0:06:32]} 35. Qb4 {[%clk 0:05:16.9]} 35... Qa6 {[%clk 0:06:23.5]}
36. Kd2 {[%clk 0:05:10.8]} 36... Rb8 {[%clk 0:06:14.8]} 37. Qd6 {[%clk
0:04:51.9]} 37... Qb6 {[%clk 0:05:35.6]} 38. Kc2 {[%clk 0:04:43.9]} 38... g6
{[%clk 0:05:35.8]} 39. Qc5 {[%clk 0:04:41.2]} 39... Qa6 {[%clk 0:05:34]} 40. Kd2
{[%clk 0:04:38.1]} 40... Rb3 {[%clk 0:05:14.6]} 41. Rxb3 {[%clk 0:04:09.4]}
41... axb3 {[%clk 0:05:13.4]} 42. Qb4 {[%clk 0:03:57]} 42... Qa2 {[%clk
0:05:02.1]} 43. Kc1 {[%clk 0:03:51.9]} 43... Kg7 {[%clk 0:04:58.4]} 44. Qe7
{[%clk 0:03:34.9]} 44... Qa6 {[%clk 0:04:25.7]} 45. Qf6+ {[%clk 0:03:35.4]}
45... Kg8 {[%clk 0:04:27.4]} 46. Qd8+ {[%clk 0:03:34]} 46... Kg7 {[%clk
0:04:29.3]} 47. Qf6+ {[%clk 0:03:35.1]} 47... Kh6 {[%clk 0:04:31.2]} 48. Qh4+
{[%clk 0:03:36.4]} 48... Kg7 {[%clk 0:04:33.3]} 49. Qf6+ {[%clk 0:03:38]}
1/2-1/2

[Event "Rapid della Domenica"]
[Site "Chess.com"]
[Date "2020.05.10"]
[Round "6"]
[White "Mrtre7"]
[Black "sirmale49"]
[Result "1-0"]
[WhiteElo "1487"]
[BlackElo "1384"]
[TimeControl "720+3"]
[EndTime "8:32:35 PDT"]
[Termination "Mrtre7 ha vinto per abbandono"]

1. d4 {[%clk 0:12:02.9]} 1... d5 {[%clk 0:11:57.7]} 2. c4 {[%clk 0:12:02.3]}
2... e5 {[%clk 0:11:58.8]} 3. dxe5 {[%clk 0:11:53.1]} 3... d4 {[%clk 0:12:00]}
4. Nf3 {[%clk 0:11:50.4]} 4... Nc6 {[%clk 0:12:00.2]} 5. Nbd2 {[%clk 0:11:49.1]}
5... Bc5 {[%clk 0:11:39]} 6. Nb3 {[%clk 0:11:20.5]} 6... Bb4+ {[%clk 0:11:32.9]}
7. Bd2 {[%clk 0:11:01.7]} 7... Be6 {[%clk 0:11:03.6]} 8. Bxb4 {[%clk 0:10:27.7]}
8... Nxb4 {[%clk 0:11:03.4]} 9. Qd2 {[%clk 0:09:26.4]} 9... Nc6 {[%clk 0:10:52]}
10. c5 {[%clk 0:08:49.2]} 10... Nge7 {[%clk 0:10:43.8]} 11. Nbxd4 {[%clk
0:08:42.7]} 11... Nxd4 {[%clk 0:10:32.4]} 12. Nxd4 {[%clk 0:08:18.5]} 12... O-O
{[%clk 0:10:13.8]} 13. e3 {[%clk 0:08:12]} 13... Nc6 {[%clk 0:09:53.5]} 14. Be2
{[%clk 0:07:16.9]} 14... Nxe5 {[%clk 0:09:38.4]} 15. O-O {[%clk 0:06:26.2]}
15... Qf6 {[%clk 0:09:12.5]} 16. Nxe6 {[%clk 0:05:04.7]} 16... fxe6 {[%clk
0:09:10.9]} 17. Qc2 {[%clk 0:03:01.4]} 17... Qg5 {[%clk 0:08:41]} 18. f4 {[%clk
0:02:12.2]} 18... Qh6 {[%clk 0:07:15.2]} 19. fxe5 {[%clk 0:01:48.2]} 19... Qxe3+
{[%clk 0:07:14.3]} 20. Kh1 {[%clk 0:01:40.4]} 20... Rad8 {[%clk 0:07:06.9]} 21.
Rxf8+ {[%clk 0:01:16.3]} 21... Kxf8 {[%clk 0:07:05.6]} 22. Rd1 {[%clk
0:01:00.6]} 22... Re8 {[%clk 0:05:50.7]} 23. Rf1+ {[%clk 0:00:30.9]} 23... Kg8
{[%clk 0:05:48.5]} 24. Qd3 {[%clk 0:00:24.4]} 24... Qxe5 {[%clk 0:05:45.4]} 25.
Qf3 {[%clk 0:00:22.3]} 25... Qf6 {[%clk 0:04:52.5]} 26. Qxf6 {[%clk 0:00:22.6]}
26... gxf6 {[%clk 0:04:53.8]} 27. Rxf6 {[%clk 0:00:24.5]} 27... Kg7 {[%clk
0:04:51]} 28. Rf3 {[%clk 0:00:24.8]} 28... e5 {[%clk 0:04:47.5]} 29. Kg1 {[%clk
0:00:23.3]} 29... c6 {[%clk 0:04:32.2]} 30. Bc4 {[%clk 0:00:24]} 30... Re7
{[%clk 0:04:29.6]} 31. Kf2 {[%clk 0:00:24.1]} 31... e4 {[%clk 0:04:26.7]} 32.
Rg3+ {[%clk 0:00:24.9]} 32... Kf6 {[%clk 0:04:25.7]} 33. Ke3 {[%clk 0:00:26.9]}
33... Kf5 {[%clk 0:04:16.1]} 34. Rg8 {[%clk 0:00:26.5]} 34... Rd7 {[%clk
0:04:10.7]} 35. Rf8+ {[%clk 0:00:24.4]} 35... Ke5 {[%clk 0:04:11.1]} 36. Re8+
{[%clk 0:00:25.5]} 36... Kf5 {[%clk 0:04:10.3]} 37. Be6+ {[%clk 0:00:27.2]} 1-0